fUSD/lending_fUSD_20260530
["ID","MTS","AMOUNT","RATE_DAILY","PERIOD"]
[423384199,1780070409000,-250.0,9.658e-05,2]
[423384200,1780070415000,1000.0,0.00027397,120]
[423384202,1780070433000,-300.0,9.657e-05,2]
[423384203,1780070436000,1855.0,0.00026848,120]
[423384204,1780070445000,666.0,0.0002757,120]
[423384205,1780070481000,-209.09056759,9.657e-05,2]
[423384209,1780070532000,-500.0,9.656e-05,2]
[423384210,1780070538000,290.0,0.00028,120]
[423384215,1780070603000,-535.9946373,9.657e-05,2]
[423384217,1780070626000,-35.9946373,9.563e-05,2]
[423384216,1780070626000,500.0,9.563e-05,2]
[423384220,1780070707000,1113.0,0.00027501,120]
[423384221,1780070717000,1000.0,0.00027397,120]
[423384222,1780070734000,10000.0,0.00028082,120]
[423384224,1780070739000,399.0,0.0002775,120]
[423384225,1780070765000,8105.0,0.00028082,120]
[423384227,1780070832000,-173.36,9.276e-05,2]
[423384228,1780070832000,-126.4137682,9.468e-05,2]
[423384226,1780070832000,-173.36,9.085e-05,2]
[423384229,1780070841000,500.0,9.142e-05,3]
[423384231,1780070908000,-333.91,9.106e-05,2]
[423384232,1780070908000,150.0,0.00011233,120]
[423384234,1780070960000,-200.0,9.142e-05,2]
[423384235,1780071014000,-1500.0,9.162e-05,2]
[423384236,1780071014000,638.32565559,0.00025817,120]
[423384237,1780071036000,-500.0,9.162e-05,2]
[423384570,1780071041000,-500.0,9.655e-05,2]
[423384595,1780071041000,-500.0,9.655e-05,2]
[423384588,1780071041000,-500.0,9.655e-05,2]
[423384586,1780071041000,-500.0,9.655e-05,2]
[423384584,1780071041000,-500.0,9.655e-05,2]
[423384582,1780071041000,-500.0,9.655e-05,2]
[423384580,1780071041000,-500.0,9.655e-05,2]
[423384573,1780071041000,-500.0,9.655e-05,2]
[423384575,1780071041000,-500.0,9.655e-05,2]
[423384572,1780071041000,-500.0,9.655e-05,2]
[423384568,1780071041000,-500.0,9.655e-05,2]
[423384566,1780071041000,-500.0,9.655e-05,2]
[423384560,1780071041000,-500.0,9.655e-05,2]
[423384544,1780071041000,-46.9462318,9.468e-05,2]
[423384562,1780071041000,-500.0,9.655e-05,2]
[423384550,1780071041000,-150.0,9.654e-05,2]
[423384554,1780071041000,-500.0,9.655e-05,2]
[423384546,1780071041000,-958.6913627,9.563e-05,2]
[423384556,1780071041000,-500.0,9.655e-05,2]
[423384558,1780071041000,-500.0,9.655e-05,2]
[423384548,1780071041000,-152.334,9.563e-05,2]
[423384552,1780071041000,-500.0,9.655e-05,2]
[423384538,1780071041000,-215.5484138,9.162e-05,2]
[423384597,1780071041000,-500.0,9.655e-05,2]
[423384542,1780071041000,-640.0,9.217e-05,2]
[423384540,1780071041000,-250.0,9.19e-05,2]
[423384564,1780071041000,-500.0,9.655e-05,2]
[423384599,1780071041000,-500.0,9.655e-05,2]
[423384577,1780071041000,-500.0,9.655e-05,2]
[423384604,1780071041000,-500.0,9.655e-05,2]
[423384601,1780071041000,-500.0,9.655e-05,2]
[423384650,1780071041000,-14745.4,9.657e-05,2]
[423384645,1780071041000,-175.87247418,9.657e-05,2]
[423384648,1780071041000,-9012.81320464,9.657e-05,2]
[423384639,1780071041000,-500.0,9.657e-05,2]
[423384640,1780071041000,-500.0,9.657e-05,2]
[423384647,1780071041000,-230140.38677479,9.657e-05,2]
[423384649,1780071041000,-559.47659083,9.657e-05,2]
[423384642,1780071041000,-500.0,9.657e-05,2]
[423384637,1780071041000,-288.82183233,9.657e-05,2]
[423384635,1780071041000,-293.94177845,9.657e-05,2]
[423384633,1780071041000,-1000.0,9.657e-05,2]
[423384622,1780071041000,-500.0,9.655e-05,2]
[423384626,1780071041000,-500.0,9.655e-05,2]
[423384643,1780071041000,-500.0,9.657e-05,2]
[423384620,1780071041000,-500.0,9.655e-05,2]
[423384592,1780071041000,-500.0,9.655e-05,2]
[423384629,1780071041000,-500.0,9.655e-05,2]
[423384590,1780071041000,-500.0,9.655e-05,2]
[423384608,1780071041000,-500.0,9.655e-05,2]
[423384606,1780071041000,-500.0,9.655e-05,2]
[423384618,1780071041000,-500.0,9.655e-05,2]
[423384612,1780071041000,-500.0,9.655e-05,2]
[423384615,1780071041000,-500.0,9.655e-05,2]
[423384614,1780071041000,-500.0,9.655e-05,2]
[423384627,1780071041000,-621.7313362,9.655e-05,2]
[423384631,1780071041000,-500.0,9.655e-05,2]
[423384624,1780071041000,-500.0,9.655e-05,2]
[423384610,1780071041000,-500.0,9.655e-05,2]
[423384690,1780071044000,-302.4758158,0.00010078,2]
[423384695,1780071044000,-2000.0,0.000102,2]
[423384688,1780071044000,-250.0,0.00010056,2]
[423384689,1780071044000,-250.0,0.00010078,2]
[423384692,1780071044000,-8206.88283598,0.00010114,2]
[423384691,1780071044000,-794.0,0.00010114,2]
[423384694,1780071044000,-33230.1787,0.000102,2]
[423384696,1780071044000,-176.1321593,0.00010207,2]
[423384709,1780071044000,-2258.79,0.00011072,2]
[423384698,1780071044000,-217.86160273,0.00010207,2]
[423384697,1780071044000,-4084.77330118,0.00010207,2]
[423384700,1780071044000,-798.35,0.00010334,2]
[423384702,1780071044000,-2258.79,0.00010544,2]
[423384699,1780071044000,-2000.0,0.00010307,2]
[423384708,1780071044000,-150.0,0.00010959,2]
[423384686,1780071044000,-321.82645648,0.0001,2]
[423384703,1780071044000,-212.93,0.00010544,2]
[423384693,1780071044000,-172.0,0.00010134,2]
[423384687,1780071044000,-173.36,0.00010041,2]
[423384670,1780071044000,-2500.0,9.658e-05,2]
[423384683,1780071044000,-173.36,9.85e-05,2]
[423384701,1780071044000,-640.0,0.00010369,2]
[423384666,1780071044000,-1245541.92342974,9.657e-05,2]
[423384668,1780071044000,-5000.0,9.658e-05,2]
[423384667,1780071044000,-503.91201384,9.658e-05,2]
[423384673,1780071044000,-159.52,9.717e-05,2]
[423384671,1780071044000,-5716.943,9.658e-05,2]
[423384672,1780071044000,-173.36,9.659e-05,2]
[423384669,1780071044000,-99247.4585,9.658e-05,2]
[423384684,1780071044000,-160.0,9.932e-05,2]
[423384674,1780071044000,-236.67,9.743e-05,2]
[423384679,1780071044000,-590.0,9.773e-05,2]
[423384676,1780071044000,-38532.44527599,9.757e-05,2]
[423384677,1780071044000,-150.0,9.757e-05,2]
[423384682,1780071044000,-157.78,9.834e-05,2]
[423384681,1780071044000,-596.0,9.808e-05,2]
[423384685,1780071044000,-226.72639299,0.0001,2]
[423384678,1780071044000,-2367009.79925516,9.758e-05,2]
[423384680,1780071044000,-160.0,9.788e-05,2]
[423384675,1780071044000,-1400.52537883,9.756e-05,2]
[423384705,1780071044000,-2258.79,0.00010808,2]
[423384718,1780071044000,-19466.5901414,0.00011796,2]
[423384706,1780071044000,-4954.14072683,0.000109,2]
[423384732,1780071044000,-500.0,0.00013698,2]
[423384730,1780071044000,-505.84487336,0.00013698,2]
[423384731,1780071044000,-500.0,0.00013698,2]
[423384735,1780071044000,-500.0,0.00013698,2]
[423384736,1780071044000,-500.0,0.00013698,2]
[423384738,1780071044000,-500.0,0.00013698,2]
[423384734,1780071044000,-500.0,0.00013698,2]
[423384741,1780071044000,-500.0,0.00013698,2]
[423384728,1780071044000,-500.0,0.00013698,2]
[423384742,1780071044000,-500.0,0.00013698,2]
[423384743,1780071044000,-500.0,0.00013698,2]
[423384740,1780071044000,-500.0,0.00013698,2]
[423384737,1780071044000,-500.0,0.00013698,2]
[423384746,1780071044000,-1396.36,0.00013699,2]
[423384745,1780071044000,-500.0,0.00013698,2]
[423384747,1780071044000,-166.66,0.00013699,2]
[423384748,1780071044000,-500.0,0.00013699,2]
[423384707,1780071044000,-1495.32283852,0.000109,2]
[423384744,1780071044000,-500.0,0.00013698,2]
[423384725,1780071044000,-2000.0,0.00012598,2]
[423384739,1780071044000,-500.0,0.00013698,2]
[423384729,1780071044000,-500.0,0.00013698,2]
[423384704,1780071044000,-255.0,0.00010619,2]
[423384727,1780071044000,-695.0,0.00012849,2]
[423384710,1780071044000,-19466.59014145,0.00011099,2]
[423384712,1780071044000,-2258.79,0.00011335,2]
[423384715,1780071044000,-640.0,0.00011522,2]
[423384714,1780071044000,-2000.0,0.00011453,2]
[423384716,1780071044000,-2258.79,0.00011599,2]
[423384717,1780071044000,-433.0,0.00011681,2]
[423384721,1780071044000,-320.38059243,0.00012025,2]
[423384713,1780071044000,-250.0,0.00011401,2]
[423384711,1780071044000,-150.0,0.00011233,2]
[423384719,1780071044000,-165.59653607,0.00011951,2]
[423384733,1780071044000,-500.0,0.00013698,2]
[423384723,1780071044000,-3845.42,0.00012055,2]
[423384722,1780071044000,-186.38551376,0.00012025,2]
[423384726,1780071044000,-640.0,0.00012674,2]
[423384720,1780071044000,-7920.91472177,0.0001199,2]
[423384724,1780071044000,-1929.12,0.00012329,2]
[423384779,1780071045000,-500.0,0.00013699,2]
[423384788,1780071045000,-500.0,0.00013699,2]
[423384787,1780071045000,-500.0,0.00013699,2]
[423384789,1780071045000,-500.0,0.00013699,2]
[423384786,1780071045000,-500.0,0.00013699,2]
[423384782,1780071045000,-500.0,0.00013699,2]
[423384783,1780071045000,-500.0,0.00013699,2]
[423384780,1780071045000,-500.0,0.00013699,2]
[423384785,1780071045000,-500.0,0.00013699,2]
[423384773,1780071045000,-500.0,0.00013699,2]
[423384784,1780071045000,-500.0,0.00013699,2]
[423384792,1780071045000,-500.0,0.00013699,2]
[423384797,1780071045000,-640.0,0.00013826,2]
[423384790,1780071045000,-500.0,0.00013699,2]
[423384791,1780071045000,-349.99999999,0.00013699,2]
[423384794,1780071045000,-500.0,0.00013699,2]
[423384804,1780071045000,-250.0,0.00014,2]
[423384805,1780071045000,-166.66,0.0001411,2]
[423384793,1780071045000,-500.0,0.00013699,2]
[423384795,1780071045000,-731.86,0.000137,2]
[423384796,1780071045000,-2000.0,0.00013743,2]
[423384798,1780071045000,-320.38059243,0.00013829,2]
[423384801,1780071045000,-19466.5901414,0.00013934,2]
[423384772,1780071045000,-500.0,0.00013699,2]
[423384799,1780071045000,-166.66,0.00013836,2]
[423384781,1780071045000,-500.0,0.00013699,2]
[423384774,1780071045000,-500.0,0.00013699,2]
[423384759,1780071045000,-500.0,0.00013699,2]
[423384771,1780071045000,-500.0,0.00013699,2]
[423384803,1780071045000,-166.66,0.00013973,2]
[423384749,1780071045000,-500.0,0.00013699,2]
[423384753,1780071045000,-500.0,0.00013699,2]
[423384751,1780071045000,-500.0,0.00013699,2]
[423384750,1780071045000,-500.0,0.00013699,2]
[423384752,1780071045000,-500.0,0.00013699,2]
[423384754,1780071045000,-500.0,0.00013699,2]
[423384755,1780071045000,-500.0,0.00013699,2]
[423384756,1780071045000,-500.0,0.00013699,2]
[423384760,1780071045000,-500.0,0.00013699,2]
[423384758,1780071045000,-500.0,0.00013699,2]
[423384761,1780071045000,-500.0,0.00013699,2]
[423384757,1780071045000,-500.0,0.00013699,2]
[423384767,1780071045000,-500.0,0.00013699,2]
[423384763,1780071045000,-500.0,0.00013699,2]
[423384762,1780071045000,-500.0,0.00013699,2]
[423384764,1780071045000,-500.0,0.00013699,2]
[423384766,1780071045000,-500.0,0.00013699,2]
[423384765,1780071045000,-500.0,0.00013699,2]
[423384768,1780071045000,-500.0,0.00013699,2]
[423384769,1780071045000,-500.0,0.00013699,2]
[423384777,1780071045000,-500.0,0.00013699,2]
[423384778,1780071045000,-322.43297414,0.00013699,2]
[423384775,1780071045000,-500.0,0.00013699,2]
[423384770,1780071045000,-500.0,0.00013699,2]
[423384776,1780071045000,-500.0,0.00013699,2]
[423384800,1780071045000,-1495.32283847,0.00013933,2]
[423384854,1780071045000,-1924.24079489,0.00019211,2]
[423384806,1780071045000,-7920.91472177,0.00014246,2]
[423384837,1780071045000,-500.0,0.00017825,2]
[423384839,1780071045000,-350.0,0.00018,2]
[423384846,1780071045000,-2861.8,0.0001841,2]
[423384845,1780071045000,-1924.24079489,0.00018315,2]
[423384847,1780071045000,-151.0,0.00018501,4]
[423384844,1780071045000,-166.66,0.00018212,2]
[423384843,1780071045000,-19466.5901414,0.0001821,2]
[423384836,1780071045000,-485.88774607,0.00017825,2]
[423384838,1780071045000,-150.0,0.00017949,3]
[423384842,1780071045000,-4954.14072681,0.00018174,2]
[423384841,1780071045000,-1495.32283847,0.00018157,2]
[423384848,1780071045000,-166.66,0.00018743,2]
[423384852,1780071045000,-403.0,0.00019178,2]
[423384850,1780071045000,-210.006472,0.00018896,2]
[423384851,1780071045000,-301.313633,0.00019085,2]
[423384849,1780071045000,-7920.91472177,0.00018758,2]
[423384853,1780071045000,-20430.55,0.00019178,2]
[423384859,1780071045000,-151.0,0.00019282,2]
[423384857,1780071045000,-151.0,0.00019282,2]
[423384856,1780071045000,-208.57895256,0.00019279,2]
[423384855,1780071045000,-208.579,0.00019278,2]
[423384858,1780071045000,-151.0,0.00019282,2]
[423384861,1780071045000,-151.0,0.00019282,2]
[423384860,1780071045000,-151.0,0.00019282,2]
[423384802,1780071045000,-4954.14072681,0.00013954,2]
[423384835,1780071045000,-160.556846,0.00017808,2]
[423384832,1780071045000,-151.0,0.00017748,2]
[423384840,1780071045000,-189.0,0.00018082,2]
[423384830,1780071045000,-151.0,0.00017501,4]
[423384817,1780071045000,-166.66,0.00016088,2]
[423384833,1780071045000,-156.587,0.00017748,2]
[423384808,1780071045000,-166.66,0.00014384,2]
[423384807,1780071045000,-166.66,0.00014247,2]
[423384811,1780071045000,-159.52,0.00014575,2]
[423384810,1780071045000,-1161.71,0.00014504,2]
[423384814,1780071045000,-176.17,0.00015068,2]
[423384809,1780071045000,-9999.99,0.00014504,2]
[423384816,1780071045000,-19466.5901414,0.00016072,2]
[423384812,1780071045000,-152.0,0.00014593,2]
[423384815,1780071045000,-300.0,0.00016,2]
[423384819,1780071045000,-159.0,0.00016438,2]
[423384818,1780071045000,-202.0,0.00016438,2]
[423384813,1780071045000,-357.17,0.00015,2]
[423384831,1780071045000,-166.66,0.00017681,2]
[423384834,1780071045000,-199.37384035,0.00017748,2]
[423384821,1780071045000,-303.0,0.00016438,2]
[423384828,1780071045000,-303.0,0.0001726,2]
[423384829,1780071045000,-333.0,0.0001726,2]
[423384825,1780071045000,-1929.12,0.00016767,2]
[423384824,1780071045000,-166.66,0.00016619,2]
[423384827,1780071045000,-202.0,0.0001726,2]
[423384826,1780071045000,-166.66,0.0001715,2]
[423384820,1780071045000,-2861.8,0.00016438,2]
[423384822,1780071045000,-462.0,0.00016438,2]
[423384823,1780071045000,-7920.91472177,0.00016502,2]
[423384904,1780071046000,-266.08633524,0.00019282,2]
[423384901,1780071046000,-500.0,0.00019282,2]
[423384910,1780071046000,-152.0,0.00019282,2]
[423384906,1780071046000,-500.0,0.00019282,2]
[423384899,1780071046000,-152.0,0.00019282,2]
[423384891,1780071046000,-500.0,0.00019282,2]
[423384903,1780071046000,-151.0,0.00019282,2]
[423384905,1780071046000,-152.0,0.00019282,2]
[423384894,1780071046000,-256.59241585,0.00019282,2]
[423384890,1780071046000,-152.0,0.00019282,2]
[423384911,1780071046000,-275.93152964,0.00019282,2]
[423384902,1780071046000,-151.0,0.00019282,2]
[423384909,1780071046000,-151.0,0.00019282,2]
[423384918,1780071046000,-500.0,0.00019282,2]
[423384908,1780071046000,-151.0,0.00019282,2]
[423384912,1780071046000,-500.0,0.00019282,2]
[423384913,1780071046000,-151.0,0.00019282,2]
[423384914,1780071046000,-1000.0,0.00019282,2]
[423384921,1780071046000,-151.0,0.00019282,2]
[423384917,1780071046000,-286.14099624,0.00019282,2]
[423384922,1780071046000,-152.0,0.00019282,2]
[423384916,1780071046000,-152.0,0.00019282,2]
[423384923,1780071046000,-397.63283948,0.00019282,2]
[423384915,1780071046000,-151.0,0.00019282,2]
[423384920,1780071046000,-151.0,0.00019282,2]
[423384889,1780071046000,-151.0,0.00019282,2]
[423384907,1780071046000,-1000.0,0.00019282,2]
[423384897,1780071046000,-693.39197629,0.00019282,2]
[423384864,1780071046000,-151.0,0.00019282,2]
[423384893,1780071046000,-151.0,0.00019282,2]
[423384919,1780071046000,-1000.0,0.00019282,2]
[423384871,1780071046000,-221.88543241,0.00019282,2]
[423384862,1780071046000,-151.0,0.00019282,2]
[423384863,1780071046000,-151.0,0.00019282,2]
[423384872,1780071046000,-151.0,0.00019282,2]
[423384868,1780071046000,-151.0,0.00019282,2]
[423384867,1780071046000,-151.0,0.00019282,2]
[423384870,1780071046000,-500.0,0.00019282,2]
[423384865,1780071046000,-151.0,0.00019282,2]
[423384866,1780071046000,-500.0,0.00019282,2]
[423384873,1780071046000,-151.0,0.00019282,2]
[423384877,1780071046000,-151.0,0.00019282,2]
[423384875,1780071046000,-500.0,0.00019282,2]
[423384874,1780071046000,-152.0,0.00019282,2]
[423384876,1780071046000,-230.09519341,0.00019282,2]
[423384884,1780071046000,-151.0,0.00019282,2]
[423384878,1780071046000,-151.0,0.00019282,2]
[423384883,1780071046000,-238.60871557,0.00019282,2]
[423384881,1780071046000,-500.0,0.00019282,2]
[423384882,1780071046000,-151.0,0.00019282,2]
[423384879,1780071046000,-152.0,0.00019282,2]
[423384880,1780071046000,-2080.17592889,0.00019282,2]
[423384886,1780071046000,-500.0,0.00019282,2]
[423384887,1780071046000,-151.0,0.00019282,2]
[423384885,1780071046000,-152.0,0.00019282,2]
[423384888,1780071046000,-247.43723804,0.00019282,2]
[423384895,1780071046000,-151.0,0.00019282,2]
[423384892,1780071046000,-1000.0,0.00019282,2]
[423384924,1780071046000,-500.0,0.00019282,2]
[423384971,1780071046000,-1465.37381594,0.000202,2]
[423384928,1780071046000,-152.0,0.00019282,2]
[423384951,1780071046000,-1349.52356376,0.000199,2]
[423384954,1780071046000,-197.0,0.0002,2]
[423384955,1780071046000,-230.0,0.0002,2]
[423384961,1780071046000,-1445.0,0.0002,2]
[423384962,1780071046000,-237.0,0.0002,2]
[423384963,1780071046000,-387.0,0.0002,2]
[423384964,1780071046000,-2295.0,0.0002,2]
[423384965,1780071046000,-977.0,0.0002,2]
[423384970,1780071046000,-1349.52356376,0.000201,2]
[423384966,1780071046000,-150.0,0.0002,20]
[423384967,1780071046000,-188.62234013,0.00020078,2]
[423384968,1780071046000,-1170.13968807,0.000201,2]
[423384956,1780071046000,-169.79598337,0.0002,2]
[423384969,1780071046000,-1249.45948521,0.000201,2]
[423384972,1780071046000,-1600.0,0.0002026,2]
[423384974,1780071046000,-19466.5901414,0.00020348,2]
[423384984,1780071046000,-1465.37381594,0.000208,2]
[423384982,1780071046000,-1000.0,0.0002073,2]
[423384983,1780071046000,-475.56,0.00020745,2]
[423384980,1780071046000,-1465.37381594,0.000206,2]
[423384979,1780071046000,-8537.03,0.00020548,2]
[423384981,1780071046000,-408.24,0.00020652,2]
[423384973,1780071046000,-187.068331,0.00020266,2]
[423384975,1780071046000,-2236.95670847,0.00020378,2]
[423384976,1780071046000,-2861.8,0.00020381,2]
[423384978,1780071046000,-290.29932185,0.00020501,4]
[423384985,1780071046000,-475.56,0.00020918,2]
[423384953,1780071046000,-1465.37381594,0.0002,2]
[423384957,1780071046000,-1071.0,0.0002,2]
[423384952,1780071046000,-400.0,0.0002,2]
[423384927,1780071046000,-152.0,0.00019282,2]
[423384925,1780071046000,-151.0,0.00019282,2]
[423384930,1780071046000,-1170.13968807,0.000193,2]
[423384929,1780071046000,-151.0,0.00019282,2]
[423384933,1780071046000,-719.04747942,0.00019337,2]
[423384934,1780071046000,-745.65223615,0.00019392,2]
[423384932,1780071046000,-1349.52356376,0.000193,2]
[423384931,1780071046000,-1249.45948521,0.000193,2]
[423384935,1780071046000,-731.86,0.000194,2]
[423384936,1780071046000,-773.24136889,0.00019446,2]
[423384937,1780071046000,-1170.13968807,0.000195,2]
[423384939,1780071046000,-1349.52356376,0.000195,2]
[423384938,1780071046000,-1249.45948521,0.000195,2]
[423384940,1780071046000,-151.0,0.00019501,4]
[423384941,1780071046000,-801.85129954,0.00019502,2]
[423384947,1780071046000,-1349.52356376,0.000197,2]
[423384942,1780071046000,-2000.0,0.00019505,7]
[423384944,1780071046000,-210.00716001,0.00019612,2]
[423384946,1780071046000,-1249.45948521,0.000197,2]
[423384948,1780071046000,-2157.14243826,0.0001983,2]
[423384943,1780071046000,-831.51979762,0.00019557,2]
[423384945,1780071046000,-1170.13968807,0.000197,2]
[423384950,1780071046000,-1249.45948521,0.000199,2]
[423384949,1780071046000,-1170.13968807,0.000199,2]
[423384959,1780071046000,-481.0,0.0002,2]
[423384960,1780071046000,-408.0,0.0002,2]
[423384958,1780071046000,-586.0,0.0002,2]
[423384977,1780071046000,-1465.37381594,0.000204,2]
[423384926,1780071046000,-564.92594168,0.00019282,2]
[423384988,1780071047000,-14098.71177657,0.00021,2]
[423384986,1780071047000,-2319.72410669,0.00020926,2]
[423384987,1780071047000,-3226.0,0.00021,2]
[423384992,1780071048000,1371.39,0.0001,2]
[423384993,1780071048000,-1944.72444727,0.0001,2]
[423384994,1780071050000,-319.8556029,0.0001,2]
[423384996,1780071050000,-152.0,0.00010315,2]
[423384998,1780071050000,-774.1397527,0.00021,2]
[423384995,1780071050000,-3635.97005017,0.0001,2]
[423384997,1780071050000,-901.28822343,0.00021,2]
[423385000,1780071050000,-4550.79657983,0.00021,2]
[423385001,1780071050000,-60.64469993,0.00021,2]
[423385002,1780071050000,-1908.528186,0.00021,2]
[423384999,1780071050000,-725.41896754,0.00021,2]
[423385006,1780071051000,-1465.37381594,0.00021,2]
[423385003,1780071051000,-151.15092866,0.00014247,2]
[423385004,1780071051000,-13091.471814,0.00021,2]
[423385013,1780071051000,-1445.0,0.00021,2]
[423385011,1780071051000,-481.0,0.00021,2]
[423385005,1780071051000,-6111.0,0.00021,2]
[423385012,1780071051000,-408.0,0.00021,2]
[423385015,1780071051000,-387.0,0.00021,2]
[423385010,1780071051000,-586.0,0.00021,2]
[423385007,1780071051000,-197.0,0.00021,2]
[423385008,1780071051000,-230.0,0.00021,2]
[423385014,1780071051000,-237.0,0.00021,2]
[423385018,1780071051000,-447.05113277,0.00021013,2]
[423385017,1780071051000,-977.0,0.00021,2]
[423385009,1780071051000,-1071.0,0.00021,2]
[423385016,1780071051000,-2295.0,0.00021,2]
[423385019,1780071073000,-365.5799085,0.000198,2]
[423385020,1780071102000,-165.7025412,0.000198,2]
[423385021,1780071141000,298.992215,0.00026852,120]
[423385023,1780071144000,-4700.01,9.558e-05,2]
[423385022,1780071144000,-300.0,9.557e-05,2]
[423385024,1780071164000,-1181.18,9.558e-05,2]
[423385026,1780071185000,-5000.01,9.558e-05,2]
[423385028,1780071207000,325.052236,0.00025643,120]
[423385027,1780071207000,-1371.39,9.558e-05,2]
[423385029,1780071229000,-5000.01,9.558e-05,2]
[423385030,1780071250000,-1181.18,9.367e-05,2]
[423385031,1780071269000,-1971.739,9.367e-05,2]
[423385032,1780071290000,-205.032,9.367e-05,2]
[423385033,1780071316000,1559.0,0.00021369,120]
[423385034,1780071318000,1559.0,0.00022437,120]
[423385035,1780071319000,1559.0,0.00023559,120]
[423385037,1780071320000,1559.0,0.00024737,120]
[423385036,1780071320000,160.452033,0.00025643,120]
[423385038,1780071322000,1559.0,0.00025974,120]
[423385039,1780071323000,1559.0,0.00027272,120]
[423385040,1780071330000,1000.0,0.00027397,120]
[423385041,1780071340000,1003.0,0.00021929,120]
[423385042,1780071341000,1003.0,0.00023025,120]
[423385043,1780071343000,1003.0,0.00024177,120]
[423385044,1780071344000,1003.0,0.00025386,120]
[423385045,1780071346000,1003.0,0.00026655,120]
[423385046,1780071348000,1003.0,0.00027988,120]
[423385047,1780071399000,175.712174,0.000245,120]
[423385049,1780071471000,-316.918357,9.508e-05,2]
[423385048,1780071471000,-150.0,9.269e-05,2]
[423385050,1780071471000,-1200.0,9.556e-05,2]
[423385053,1780071471000,-326.10044457,9.557e-05,2]
[423385051,1780071471000,-152.23803821,9.557e-05,2]
[423385054,1780071471000,-500.0,9.557e-05,2]
[423385055,1780071471000,-7526.6636,9.558e-05,2]
[423385058,1780071471000,-1498367.06286022,9.558e-05,2]
[423385052,1780071471000,-500.0,9.557e-05,2]
[423385056,1780071471000,-4175.2365,9.558e-05,2]
[423385057,1780071471000,-16785.7802,9.558e-05,2]
[423385062,1780071487000,-250.0,9.557e-05,2]
[423385061,1780071487000,-500.0,9.557e-05,2]
[423385063,1780071487000,-1632.93713978,9.558e-05,2]
[423385059,1780071487000,-500.0,9.557e-05,2]
[423385060,1780071487000,-449.67548174,9.557e-05,2]
[423385065,1780071600000,150.0,0.0002298,120]
[423385066,1780071601000,232.99539335,0.0002298,120]
[423385067,1780071605000,623.0,0.00022186,120]
[423385068,1780071607000,623.0,0.00023296,120]
[423385069,1780071608000,623.0,0.00024461,120]
[423385070,1780071609000,623.0,0.00025684,120]
[423385071,1780071611000,623.0,0.00026968,120]
[423385072,1780071630000,401.0,0.00022403,120]
[423385074,1780071632000,1023.2472059,0.000226,120]
[423385073,1780071632000,401.0,0.00023523,120]
[423385075,1780071633000,401.0,0.00024699,120]
[423385077,1780071634000,401.0,0.00025934,120]
[423385076,1780071634000,800.47097822,0.00025,120]
[423385078,1780071636000,401.0,0.00027231,120]
[423385079,1780071642000,1000.0,0.00027397,120]
[423385081,1780071673000,1028.83841075,0.0002808,120]
[423385082,1780071699000,-300.0,9.172e-05,2]
[423385083,1780071702000,606.47754122,0.00028,120]
[423385085,1780071753000,-150.0,9.172e-05,2]
[423385086,1780071755000,225.02394988,0.00025,120]
[423385088,1780071756000,787.82264824,0.0002,120]
[423385089,1780071756000,1058.6831427,0.0002,120]
[423385092,1780071757000,316.18139321,0.00027,120]
[423385090,1780071757000,369.51060619,0.000226,120]
[423385094,1780071758000,758.75325158,0.000271,120]